[Event "Late-Titled-Tuesday-Blitz-November-28-2023"]
[Site "Chess.com"]
[Date "2023.11.28"]
[Round "9"]
[White "mind1mover"]
[Black "vladgoncharov"]
[Result "0-1"]
[WhiteElo "2746"]
[BlackElo "2635"]
[TimeControl "180+1"]
[EndTime "15:41:43 PST"]
[Termination "vladgoncharov won on time"]

1. e4 {[%clk 0:02:59.7]} 1... e6 {[%clk 0:02:57.9]} 2. b3 {[%clk 0:02:58.5]}
2... c5 {[%clk 0:02:54.4]} 3. Bb2 {[%clk 0:02:58.2]} 3... Nc6 {[%clk 0:02:54.6]}
4. Nf3 {[%clk 0:02:58]} 4... d5 {[%clk 0:02:54.4]} 5. Nc3 {[%clk 0:02:55.4]}
5... d4 {[%clk 0:02:52.3]} 6. Nb1 {[%clk 0:02:53.4]} 6... Nf6 {[%clk 0:02:49.8]}
7. d3 {[%clk 0:02:44.4]} 7... e5 {[%clk 0:02:47.2]} 8. Nbd2 {[%clk 0:02:42.1]}
8... Bd6 {[%clk 0:02:40.2]} 9. g3 {[%clk 0:02:39.6]} 9... Qe7 {[%clk 0:02:35.7]}
10. Bg2 {[%clk 0:02:38.8]} 10... Bg4 {[%clk 0:02:34.5]} 11. h3 {[%clk
0:02:38.1]} 11... Be6 {[%clk 0:02:34.4]} 12. Ng5 {[%clk 0:02:21.1]} 12... Bc8
{[%clk 0:02:27.5]} 13. h4 {[%clk 0:02:09.4]} 13... h6 {[%clk 0:02:27.1]} 14.
Ngf3 {[%clk 0:02:09.6]} 14... Bg4 {[%clk 0:02:25.8]} 15. Bh3 {[%clk 0:02:07.9]}
15... h5 {[%clk 0:02:21.5]} 16. Bxg4 {[%clk 0:02:03.9]} 16... hxg4 {[%clk
0:02:21.4]} 17. Nh2 {[%clk 0:02:04.6]} 17... Qd7 {[%clk 0:02:19.3]} 18. f3
{[%clk 0:01:55.4]} 18... gxf3 {[%clk 0:02:17.5]} 19. Qxf3 {[%clk 0:01:53.8]}
19... O-O-O {[%clk 0:02:13.4]} 20. O-O-O {[%clk 0:01:33.6]} 20... Kb8 {[%clk
0:02:12.9]} 21. Rdf1 {[%clk 0:01:32.7]} 21... Bc7 {[%clk 0:02:10.9]} 22. Qf5
{[%clk 0:01:30.6]} 22... Qe7 {[%clk 0:02:08.4]} 23. Ng4 {[%clk 0:01:27.1]} 23...
Nxg4 {[%clk 0:02:07.9]} 24. Qxg4 {[%clk 0:01:28]} 24... f6 {[%clk 0:02:08]} 25.
h5 {[%clk 0:01:26.3]} 25... b5 {[%clk 0:01:56.7]} 26. Qg6 {[%clk 0:01:19.1]}
26... Rh6 {[%clk 0:01:53.5]} 27. Qf5 {[%clk 0:01:18.9]} 27... Rdh8 {[%clk
0:01:46]} 28. g4 {[%clk 0:01:18.7]} 28... Qd6 {[%clk 0:01:42.8]} 29. Ba3 {[%clk
0:01:06.1]} 29... Ne7 {[%clk 0:01:39.9]} 30. Qf2 {[%clk 0:01:00.6]} 30... Ba5
{[%clk 0:01:39.6]} 31. Qe2 {[%clk 0:00:54]} 31... Bxd2+ {[%clk 0:01:35.4]} 32.
Qxd2 {[%clk 0:00:46.3]} 32... Kb7 {[%clk 0:01:34.8]} 33. Kb1 {[%clk 0:00:27.3]}
33... a6 {[%clk 0:01:20.9]} 34. Rhg1 {[%clk 0:00:22.7]} 34... Nc6 {[%clk
0:01:10.8]} 35. g5 {[%clk 0:00:18.5]} 35... Rxh5 {[%clk 0:01:10.6]} 36. gxf6
{[%clk 0:00:18.8]} 36... gxf6 {[%clk 0:01:10.6]} 37. Rg7+ {[%clk 0:00:19.5]}
37... Kb6 {[%clk 0:01:10.7]} 38. Rg6 {[%clk 0:00:15.9]} 38... Rh1 {[%clk
0:01:04.7]} 39. Qg2 {[%clk 0:00:15.7]} 39... Rxf1+ {[%clk 0:00:54.8]} 40. Qxf1
{[%clk 0:00:16.6]} 40... Rf8 {[%clk 0:00:54.5]} 41. Qh3 {[%clk 0:00:11.7]} 41...
Qe7 {[%clk 0:00:49]} 42. Qh6 {[%clk 0:00:09.9]} 42... Rf7 {[%clk 0:00:42.7]} 43.
Qh8 {[%clk 0:00:05.3]} 43... Rh7 {[%clk 0:00:37.7]} 44. Qxf6 {[%clk 0:00:03.8]}
44... Qxf6 {[%clk 0:00:37.2]} 45. Rxf6 {[%clk 0:00:04.7]} 45... Rh1+ {[%clk
0:00:37.1]} 46. Bc1 {[%clk 0:00:05.4]} 46... c4 {[%clk 0:00:34.7]} 47. bxc4
{[%clk 0:00:01.7]} 47... bxc4 {[%clk 0:00:34.2]} 48. dxc4 {[%clk 0:00:02.6]}
48... Kc5 {[%clk 0:00:34.1]} 49. Kb2 {[%clk 0:00:02.5]} 49... Na5 {[%clk
0:00:34.1]} 50. Rxa6 {[%clk 0:00:01.5]} 50... Nxc4+ {[%clk 0:00:34]} 51. Kb1
{[%clk 0:00:01.3]} 51... Kb4 {[%clk 0:00:31.8]} 0-1

[Event "Late-Titled-Tuesday-Blitz-November-28-2023"]
[Site "Chess.com"]
[Date "2023.11.28"]
[Round "9"]
[White "zajka-molotok"]
[Black "KNVB"]
[Result "1-0"]
[WhiteElo "2550"]
[BlackElo "2665"]
[TimeControl "180+1"]
[EndTime "15:41:43 PST"]
[Termination "zajka-molotok won on time"]

1. e4 {[%clk 0:03:00.9]} 1... e5 {[%clk 0:02:49.5]} 2. Nf3 {[%clk 0:03:00.3]}
2... Nc6 {[%clk 0:02:49.7]} 3. Nc3 {[%clk 0:03:00.2]} 3... Nf6 {[%clk
0:02:43.5]} 4. Bb5 {[%clk 0:02:59.6]} 4... Bb4 {[%clk 0:02:43.7]} 5. O-O {[%clk
0:02:58.3]} 5... O-O {[%clk 0:02:42.1]} 6. Bxc6 {[%clk 0:02:57.6]} 6... bxc6
{[%clk 0:02:35.6]} 7. Nxe5 {[%clk 0:02:53.9]} 7... Re8 {[%clk 0:02:31.1]} 8. Nd3
{[%clk 0:02:52.9]} 8... Bxc3 {[%clk 0:02:30.9]} 9. dxc3 {[%clk 0:02:53.8]} 9...
Nxe4 {[%clk 0:02:31.5]} 10. Bf4 {[%clk 0:02:46.2]} 10... d6 {[%clk 0:02:31.5]}
11. Re1 {[%clk 0:02:44.3]} 11... Bf5 {[%clk 0:02:21.9]} 12. Qf3 {[%clk
0:02:42.9]} 12... Qd7 {[%clk 0:02:21]} 13. h3 {[%clk 0:02:39.4]} 13... c5 {[%clk
0:01:46.7]} 14. Re2 {[%clk 0:02:19.9]} 14... c4 {[%clk 0:01:18.9]} 15. Nb4
{[%clk 0:02:18.7]} 15... Qb5 {[%clk 0:01:15.3]} 16. a4 {[%clk 0:02:14.7]} 16...
Qb7 {[%clk 0:01:15.7]} 17. a5 {[%clk 0:02:04.9]} 17... a6 {[%clk 0:00:59.8]} 18.
Rae1 {[%clk 0:02:00.5]} 18... c5 {[%clk 0:00:38.9]} 19. Nd3 {[%clk 0:01:27.1]}
19... Qd7 {[%clk 0:00:07.8]} 20. Nc1 {[%clk 0:01:22.2]} 20... Rab8 {[%clk
0:00:02.8]} 21. b3 {[%clk 0:01:18.7]} 21... h6 {[%clk 0:00:02.2]} 22. bxc4
{[%clk 0:01:16.3]} 22... Bg6 {[%clk 0:00:02.3]} 23. Nb3 {[%clk 0:01:11.3]} 23...
Re6 {[%clk 0:00:02]} 24. Rxe4 {[%clk 0:00:54.9]} 24... Rxe4 {[%clk 0:00:01.4]}
25. Rxe4 {[%clk 0:00:55]} 25... Bxe4 {[%clk 0:00:01.5]} 26. Qxe4 {[%clk
0:00:55.9]} 26... Re8 {[%clk 0:00:02.1]} 27. Qd5 {[%clk 0:00:52.1]} 27... Qe6
{[%clk 0:00:02.1]} 28. Qxd6 {[%clk 0:00:39]} 28... Qxc4 {[%clk 0:00:02.2]} 29.
Be3 {[%clk 0:00:30.9]} 29... Qxc3 {[%clk 0:00:02.1]} 30. Qxc5 {[%clk 0:00:30.2]}
30... Qb2 {[%clk 0:00:01.9]} 31. Qc6 {[%clk 0:00:26.5]} 31... Qb1+ {[%clk
0:00:01.9]} 32. Kh2 {[%clk 0:00:26]} 32... Rf8 {[%clk 0:00:02.8]} 33. Nd4 {[%clk
0:00:22]} 33... Qa1 {[%clk 0:00:02.4]} 34. Qxa6 {[%clk 0:00:20.4]} 34... Qc3
{[%clk 0:00:02.6]} 35. Qb6 {[%clk 0:00:18.4]} 35... Ra8 {[%clk 0:00:01.9]} 36.
a6 {[%clk 0:00:18.3]} 36... Qa3 {[%clk 0:00:01.8]} 37. Nf5 {[%clk 0:00:15.6]}
37... Rxa6 {[%clk 0:00:01.5]} 38. Qd8+ {[%clk 0:00:13.5]} 38... Kh7 {[%clk
0:00:02.1]} 39. Qd4 {[%clk 0:00:11.4]} 39... Rg6 {[%clk 0:00:01.9]} 40. c4
{[%clk 0:00:08.4]} 40... Kg8 {[%clk 0:00:01.7]} 41. Qd8+ {[%clk 0:00:07.6]}
41... Kh7 {[%clk 0:00:01.7]} 42. Ne7 {[%clk 0:00:07.2]} 42... Qa8 {[%clk
0:00:01.2]} 43. Qxa8 {[%clk 0:00:06.5]} 1-0

[Event "Late-Titled-Tuesday-Blitz-November-28-2023"]
[Site "Chess.com"]
[Date "2023.11.28"]
[Round "9"]
[White "jcmesafischer"]
[Black "Walter_White_Poland"]
[Result "1-0"]
[WhiteElo "2365"]
[BlackElo "2361"]
[TimeControl "180+1"]
[EndTime "15:41:45 PST"]
[Termination "jcmesafischer won by resignation"]

1. e4 {[%clk 0:02:46.4]} 1... e5 {[%clk 0:02:42]} 2. Nf3 {[%clk 0:02:44.8]} 2...
Nc6 {[%clk 0:02:41.5]} 3. Bc4 {[%clk 0:02:17.1]} 3... Nf6 {[%clk 0:02:40.1]} 4.
d3 {[%clk 0:02:12.6]} 4... d5 {[%clk 0:02:39.8]} 5. exd5 {[%clk 0:02:06.6]} 5...
Nxd5 {[%clk 0:02:40.7]} 6. Qe2 {[%clk 0:02:02.5]} 6... Bg4 {[%clk 0:00:41.4]} 7.
c3 {[%clk 0:01:39.1]} 7... f6 {[%clk 0:00:25.5]} 8. h3 {[%clk 0:00:58.1]} 8...
Be6 {[%clk 0:00:22.6]} 9. d4 {[%clk 0:00:50.6]} 9... Qd7 {[%clk 0:00:20.5]} 10.
dxe5 {[%clk 0:00:46.3]} 10... O-O-O {[%clk 0:00:19.8]} 11. Bb5 {[%clk
0:00:28.6]} 11... a6 {[%clk 0:00:10]} 12. Ba4 {[%clk 0:00:24.8]} 12... Nb6
{[%clk 0:00:09.3]} 13. Bb3 {[%clk 0:00:22.2]} 13... Bxb3 {[%clk 0:00:08.2]} 14.
axb3 {[%clk 0:00:22.1]} 14... Nxe5 {[%clk 0:00:08.4]} 15. Nxe5 {[%clk
0:00:21.4]} 15... fxe5 {[%clk 0:00:08.8]} 16. Bg5 {[%clk 0:00:20.5]} 16... Re8
{[%clk 0:00:03.9]} 17. Nd2 {[%clk 0:00:19]} 17... Bd6 {[%clk 0:00:04.4]} 18. Ne4
{[%clk 0:00:18.6]} 18... h6 {[%clk 0:00:04.8]} 19. Be3 {[%clk 0:00:18.3]} 19...
Qc6 {[%clk 0:00:04.4]} 20. Bxb6 {[%clk 0:00:16.2]} 20... Qxb6 {[%clk 0:00:04.2]}
21. b4 {[%clk 0:00:14.9]} 21... Rhf8 {[%clk 0:00:02.7]} 22. O-O {[%clk
0:00:14.4]} 22... Kb8 {[%clk 0:00:03.2]} 23. Rad1 {[%clk 0:00:10.4]} 23... Re6
{[%clk 0:00:03.4]} 24. Rd5 {[%clk 0:00:09.9]} 24... Rfe8 {[%clk 0:00:03.6]} 25.
b5 {[%clk 0:00:09.9]} 25... Bf8 {[%clk 0:00:03.5]} 26. bxa6 {[%clk 0:00:09.6]}
26... Qxa6 {[%clk 0:00:04.4]} 27. c4 {[%clk 0:00:09.5]} 27... Qb6 {[%clk
0:00:04.4]} 28. Rb5 {[%clk 0:00:09.7]} 28... Qc6 {[%clk 0:00:04.1]} 29. Nc3
{[%clk 0:00:09.5]} 29... Rd8 {[%clk 0:00:03.9]} 30. Nd5 {[%clk 0:00:08.8]} 30...
Red6 {[%clk 0:00:03.1]} 31. Ra1 {[%clk 0:00:08.6]} 31... Rxd5 {[%clk 0:00:03.2]}
32. Rxd5 {[%clk 0:00:08.1]} 32... Rxd5 {[%clk 0:00:03.6]} 33. cxd5 {[%clk
0:00:08.8]} 33... Qxd5 {[%clk 0:00:04.2]} 34. Rd1 {[%clk 0:00:09.2]} 34... Qc6
{[%clk 0:00:03.7]} 35. Rd8+ {[%clk 0:00:09.3]} 35... Ka7 {[%clk 0:00:04.3]} 36.
Rxf8 {[%clk 0:00:09.5]} 36... Qc1+ {[%clk 0:00:05.2]} 37. Kh2 {[%clk 0:00:09.7]}
37... Qc6 {[%clk 0:00:05.4]} 38. Rf3 {[%clk 0:00:09.6]} 38... e4 {[%clk
0:00:04.9]} 39. Ra3+ {[%clk 0:00:09.6]} 39... Kb8 {[%clk 0:00:04.2]} 40. Qd2
{[%clk 0:00:10.1]} 40... Qd6+ {[%clk 0:00:05.1]} 41. Qxd6 {[%clk 0:00:10.2]}
41... cxd6 {[%clk 0:00:06]} 42. Re3 {[%clk 0:00:10.1]} 42... d5 {[%clk
0:00:06.9]} 43. Rg3 {[%clk 0:00:10.8]} 43... Kc7 {[%clk 0:00:06.7]} 44. Rxg7+
{[%clk 0:00:10.6]} 44... Kd6 {[%clk 0:00:07.6]} 45. Rg6+ {[%clk 0:00:11.1]}
45... Ke5 {[%clk 0:00:07.8]} 46. Rxh6 {[%clk 0:00:12]} 46... d4 {[%clk
0:00:08.7]} 47. Rh8 {[%clk 0:00:12.3]} 47... d3 {[%clk 0:00:09.2]} 48. Rd8
{[%clk 0:00:12.8]} 48... b5 {[%clk 0:00:08.9]} 49. Kg3 {[%clk 0:00:12.7]} 1-0

[Event "Late-Titled-Tuesday-Blitz-November-28-2023"]
[Site "Chess.com"]
[Date "2023.11.28"]
[Round "9"]
[White "Goffredo_Fofi"]
[Black "kai_nov"]
[Result "0-1"]
[WhiteElo "2514"]
[BlackElo "2311"]
[TimeControl "180+1"]
[EndTime "15:41:50 PST"]
[Termination "kai_nov won by resignation"]

1. e4 {[%clk 0:02:54.8]} 1... c5 {[%clk 0:02:59.6]} 2. d3 {[%clk 0:02:53.7]}
2... Nc6 {[%clk 0:02:58.7]} 3. g3 {[%clk 0:02:53.6]} 3... h5 {[%clk 0:02:57.5]}
4. h3 {[%clk 0:02:49.3]} 4... d5 {[%clk 0:02:53.7]} 5. Nd2 {[%clk 0:02:48]} 5...
Nf6 {[%clk 0:02:47]} 6. Bg2 {[%clk 0:02:45.9]} 6... e5 {[%clk 0:02:38.9]} 7.
exd5 {[%clk 0:02:40.9]} 7... Nxd5 {[%clk 0:02:38.2]} 8. Ngf3 {[%clk 0:02:41.5]}
8... Be7 {[%clk 0:02:31.7]} 9. Nc4 {[%clk 0:02:40.8]} 9... f6 {[%clk 0:02:27.7]}
10. Nh4 {[%clk 0:02:36.6]} 10... Kf7 {[%clk 0:02:22.5]} 11. Be4 {[%clk 0:02:29]}
11... g5 {[%clk 0:02:10.2]} 12. Nf5 {[%clk 0:02:20.1]} 12... Bxf5 {[%clk
0:01:57.1]} 13. Bxf5 {[%clk 0:02:20]} 13... h4 {[%clk 0:01:57.3]} 14. c3 {[%clk
0:02:12]} 14... b5 {[%clk 0:01:52.4]} 15. Ne3 {[%clk 0:02:10.7]} 15... Nxe3
{[%clk 0:01:37.7]} 16. Bxe3 {[%clk 0:02:11.6]} 16... c4 {[%clk 0:01:36.3]} 17.
Be4 {[%clk 0:02:05.5]} 17... Qc7 {[%clk 0:01:32.9]} 18. dxc4 {[%clk 0:02:02.4]}
18... Rad8 {[%clk 0:01:27.5]} 19. Qe2 {[%clk 0:01:59.5]} 19... b4 {[%clk
0:01:18.3]} 20. Qf3 {[%clk 0:01:41.6]} 20... bxc3 {[%clk 0:01:10.6]} 21. Bd5+
{[%clk 0:01:37.2]} 21... Kg7 {[%clk 0:01:08.3]} 22. bxc3 {[%clk 0:01:37.8]}
22... Na5 {[%clk 0:01:04.4]} 23. Rb1 {[%clk 0:01:16.9]} 23... hxg3 {[%clk
0:00:55.3]} 24. fxg3 {[%clk 0:01:10.9]} 24... Rb8 {[%clk 0:00:48.8]} 25. Rxb8
{[%clk 0:00:59.8]} 25... Rxb8 {[%clk 0:00:47.8]} 26. O-O {[%clk 0:00:58.3]}
26... Nxc4 {[%clk 0:00:44.2]} 27. Bxg5 {[%clk 0:00:36.5]} 27... Qc5+ {[%clk
0:00:23.4]} 28. Kh1 {[%clk 0:00:36.1]} 28... Rf8 {[%clk 0:00:19.3]} 29. Bc1
{[%clk 0:00:26.8]} 29... f5 {[%clk 0:00:15.1]} 30. Qg2 {[%clk 0:00:13.6]} 30...
e4 {[%clk 0:00:14.4]} 31. Bxc4 {[%clk 0:00:09]} 31... Qxc4 {[%clk 0:00:15.3]}
32. Be3 {[%clk 0:00:07.6]} 32... Qxc3 {[%clk 0:00:13.9]} 33. Qf2 {[%clk
0:00:07.2]} 33... Kg6 {[%clk 0:00:11.3]} 34. g4 {[%clk 0:00:06.4]} 34... f4
{[%clk 0:00:10.3]} 35. Bxf4 {[%clk 0:00:05.2]} 35... Qxh3+ {[%clk 0:00:10.3]}
36. Kg1 {[%clk 0:00:04.5]} 36... Bh4 {[%clk 0:00:09.9]} 37. Qg2 {[%clk
0:00:04.2]} 37... Qxg2+ {[%clk 0:00:09.3]} 38. Kxg2 {[%clk 0:00:05.1]} 38... Bg5
{[%clk 0:00:09.3]} 39. Bxg5 {[%clk 0:00:03.2]} 39... Rxf1 {[%clk 0:00:09.4]} 40.
Kxf1 {[%clk 0:00:04.1]} 40... Kxg5 {[%clk 0:00:09.8]} 41. Ke2 {[%clk 0:00:05]}
41... Kxg4 {[%clk 0:00:10.2]} 42. Ke3 {[%clk 0:00:05.8]} 42... Kf5 {[%clk
0:00:10.6]} 43. a4 {[%clk 0:00:06]} 43... a5 {[%clk 0:00:10.5]} 44. Kd4 {[%clk
0:00:06]} 44... Kf4 {[%clk 0:00:10.8]} 45. Kc5 {[%clk 0:00:06.9]} 45... e3
{[%clk 0:00:11.2]} 46. Kb5 {[%clk 0:00:07.8]} 46... e2 {[%clk 0:00:11.9]} 47.
Kxa5 {[%clk 0:00:08.7]} 47... e1=Q+ {[%clk 0:00:12.6]} 48. Kb6 {[%clk
0:00:09.6]} 48... Qb4+ {[%clk 0:00:12.5]} 0-1

[Event "Late-Titled-Tuesday-Blitz-November-28-2023"]
[Site "Chess.com"]
[Date "2023.11.28"]
[Round "9"]
[White "inagreV"]
[Black "LUISMIGUELOV"]
[Result "0-1"]
[WhiteElo "2399"]
[BlackElo "2215"]
[TimeControl "180+1"]
[EndTime "15:41:51 PST"]
[Termination "LUISMIGUELOV won on time"]

1. d4 {[%clk 0:02:58.6]} 1... d5 {[%clk 0:02:58.3]} 2. c4 {[%clk 0:02:58.2]}
2... c6 {[%clk 0:02:58.1]} 3. Nc3 {[%clk 0:02:55.2]} 3... Nf6 {[%clk 0:02:58.5]}
4. e3 {[%clk 0:02:55.1]} 4... Bf5 {[%clk 0:02:52.8]} 5. f3 {[%clk 0:02:49.5]}
5... e6 {[%clk 0:02:51.2]} 6. g4 {[%clk 0:02:43.4]} 6... Bg6 {[%clk 0:02:48.3]}
7. h4 {[%clk 0:02:43.4]} 7... h6 {[%clk 0:02:45.3]} 8. Nge2 {[%clk 0:02:27]}
8... Be7 {[%clk 0:02:37.6]} 9. Nf4 {[%clk 0:02:23.3]} 9... Bh7 {[%clk
0:02:32.8]} 10. g5 {[%clk 0:02:11.6]} 10... Ng8 {[%clk 0:02:32]} 11. g6 {[%clk
0:01:55.9]} 11... Bxg6 {[%clk 0:02:29.9]} 12. Nxg6 {[%clk 0:01:55.5]} 12... fxg6
{[%clk 0:02:29.3]} 13. Qc2 {[%clk 0:01:53.7]} 13... Bxh4+ {[%clk 0:02:28.3]} 14.
Kd1 {[%clk 0:01:53.3]} 14... Qf6 {[%clk 0:02:23.5]} 15. Rxh4 {[%clk 0:01:26.5]}
15... Qxh4 {[%clk 0:02:22.5]} 16. Qxg6+ {[%clk 0:01:27.1]} 16... Kf8 {[%clk
0:02:20.5]} 17. Qxe6 {[%clk 0:01:07.8]} 17... Qe7 {[%clk 0:02:07.9]} 18. Qc8+
{[%clk 0:00:54]} 18... Qe8 {[%clk 0:02:07.2]} 19. Qxb7 {[%clk 0:00:52.8]} 19...
Nd7 {[%clk 0:02:04.4]} 20. cxd5 {[%clk 0:00:52.9]} 20... cxd5 {[%clk 0:02:01]}
21. Nxd5 {[%clk 0:00:32.6]} 21... Rb8 {[%clk 0:01:59.4]} 22. Qxa7 {[%clk
0:00:26.8]} 22... Ngf6 {[%clk 0:01:58.6]} 23. Bc4 {[%clk 0:00:18.1]} 23... Nxd5
{[%clk 0:01:50.3]} 24. Bxd5 {[%clk 0:00:17.7]} 24... Nb6 {[%clk 0:01:50.2]} 25.
Be6 {[%clk 0:00:15.1]} 25... Na4 {[%clk 0:00:58.6]} 26. b3 {[%clk 0:00:07.3]}
26... Nc3+ {[%clk 0:00:57.1]} 27. Kd2 {[%clk 0:00:07.6]} 27... Nb5 {[%clk
0:00:52.5]} 28. Ba3+ {[%clk 0:00:05.7]} 28... Nxa3 {[%clk 0:00:51.2]} 29. Qxa3+
{[%clk 0:00:06.3]} 29... Qe7 {[%clk 0:00:51.1]} 30. Qa6 {[%clk 0:00:06]} 30...
Qb4+ {[%clk 0:00:45.3]} 31. Ke2 {[%clk 0:00:03.7]} 31... Qb5+ {[%clk 0:00:45]}
32. Qxb5 {[%clk 0:00:04]} 32... Rxb5 {[%clk 0:00:45]} 33. Bc4 {[%clk 0:00:04.9]}
33... Rb6 {[%clk 0:00:34.8]} 34. Rg1 {[%clk 0:00:04.7]} 34... g5 {[%clk
0:00:33.4]} 35. e4 {[%clk 0:00:04]} 35... Ke7 {[%clk 0:00:31.3]} 36. e5 {[%clk
0:00:04.1]} 36... Rd8 {[%clk 0:00:29.5]} 37. Ke3 {[%clk 0:00:04.1]} 37... Rb7
{[%clk 0:00:21.2]} 38. Ke4 {[%clk 0:00:02.4]} 38... Ra7 {[%clk 0:00:21]} 39. a4
{[%clk 0:00:01.9]} 39... Rad7 {[%clk 0:00:16.5]} 40. d5 {[%clk 0:00:02.1]} 40...
Rb7 {[%clk 0:00:12.7]} 41. Rh1 {[%clk 0:00:01.8]} 41... Rb6 {[%clk 0:00:11]} 0-1

[Event "Late-Titled-Tuesday-Blitz-November-28-2023"]
[Site "Chess.com"]
[Date "2023.11.28"]
[Round "9"]
[White "Actuary44"]
[Black "Tomytoteph"]
[Result "0-1"]
[WhiteElo "2474"]
[BlackElo "2613"]
[TimeControl "180+1"]
[EndTime "15:41:54 PST"]
[Termination "Tomytoteph won by resignation"]

1. e4 {[%clk 0:02:58.6]} 1... c5 {[%clk 0:02:28.6]} 2. d4 {[%clk 0:02:58.6]}
2... cxd4 {[%clk 0:02:28.1]} 3. c3 {[%clk 0:02:59.1]} 3... d3 {[%clk 0:02:28.5]}
4. Bxd3 {[%clk 0:02:59]} 4... Nc6 {[%clk 0:02:28]} 5. f4 {[%clk 0:02:59.6]} 5...
d5 {[%clk 0:02:27.2]} 6. e5 {[%clk 0:02:59.1]} 6... Nh6 {[%clk 0:02:26.4]} 7.
Nf3 {[%clk 0:02:59.6]} 7... Bg4 {[%clk 0:02:25.9]} 8. O-O {[%clk 0:03:00]} 8...
e6 {[%clk 0:02:25.9]} 9. Kh1 {[%clk 0:03:00.2]} 9... Nf5 {[%clk 0:02:22.7]} 10.
Qe1 {[%clk 0:02:54.6]} 10... d4 {[%clk 0:02:11.1]} 11. cxd4 {[%clk 0:02:47.4]}
11... Bxf3 {[%clk 0:02:10.5]} 12. Rxf3 {[%clk 0:02:40.2]} 12... Ncxd4 {[%clk
0:02:10.6]} 13. Rf1 {[%clk 0:02:37.9]} 13... Bc5 {[%clk 0:02:10]} 14. Nc3 {[%clk
0:02:37.2]} 14... O-O {[%clk 0:02:09.3]} 15. Ne4 {[%clk 0:02:37.2]} 15... Be7
{[%clk 0:02:09.1]} 16. g4 {[%clk 0:02:30.3]} 16... Nh6 {[%clk 0:01:53.3]} 17.
Qg3 {[%clk 0:02:20.9]} 17... Rc8 {[%clk 0:01:45.6]} 18. Bd2 {[%clk 0:02:08.8]}
18... Kh8 {[%clk 0:01:19.5]} 19. Rad1 {[%clk 0:02:07.9]} 19... f5 {[%clk
0:01:17.9]} 20. Nf2 {[%clk 0:01:57.2]} 20... Qd5+ {[%clk 0:01:15.1]} 21. Qg2
{[%clk 0:01:56.1]} 21... Qxg2+ {[%clk 0:01:12.7]} 22. Kxg2 {[%clk 0:01:57]}
22... fxg4 {[%clk 0:01:13.1]} 23. Be4 {[%clk 0:01:43.6]} 23... b6 {[%clk
0:01:13]} 24. Bc3 {[%clk 0:01:41.6]} 24... Ndf5 {[%clk 0:01:08.9]} 25. Rfe1
{[%clk 0:01:07.8]} 25... Nh4+ {[%clk 0:01:07.9]} 26. Kg3 {[%clk 0:01:08.2]}
26... N6f5+ {[%clk 0:01:08.5]} 27. Kxg4 {[%clk 0:01:08.2]} 27... Bc5 {[%clk
0:01:05.9]} 28. Nd3 {[%clk 0:00:50.9]} 28... Be7 {[%clk 0:00:57.2]} 29. Nb4
{[%clk 0:00:46.4]} 29... Ng6 {[%clk 0:00:54.2]} 30. Nc6 {[%clk 0:00:33.9]} 30...
Bc5 {[%clk 0:00:54.2]} 31. Nxa7 {[%clk 0:00:28.8]} 31... Rc7 {[%clk 0:00:50.3]}
32. Nb5 {[%clk 0:00:28]} 32... Rcf7 {[%clk 0:00:50.9]} 33. Bxf5 {[%clk
0:00:24.5]} 33... Rxf5 {[%clk 0:00:51.8]} 34. Re4 {[%clk 0:00:19.5]} 34... Nxf4
{[%clk 0:00:50.2]} 35. Nd6 {[%clk 0:00:13.5]} 35... h5+ {[%clk 0:00:49.7]} 36.
Kg3 {[%clk 0:00:11]} 36... Rg5+ {[%clk 0:00:49.8]} 37. Kf3 {[%clk 0:00:08]}
37... Nd5+ {[%clk 0:00:48.2]} 38. Ke2 {[%clk 0:00:07.2]} 38... Rg2+ {[%clk
0:00:48.2]} 39. Kd3 {[%clk 0:00:07.5]} 39... b5 {[%clk 0:00:45.2]} 40. Rd2
{[%clk 0:00:05.8]} 40... Rf3+ {[%clk 0:00:40.6]} 41. Kc2 {[%clk 0:00:05.8]}
41... Rff2 {[%clk 0:00:34.3]} 42. Rxf2 {[%clk 0:00:05]} 42... Rxf2+ {[%clk
0:00:35.2]} 43. Kb3 {[%clk 0:00:05.7]} 43... Rxh2 {[%clk 0:00:35]} 44. Nxb5
{[%clk 0:00:05.4]} 44... h4 {[%clk 0:00:33.5]} 45. Nd6 {[%clk 0:00:05.8]} 45...
h3 {[%clk 0:00:34]} 46. Nf7+ {[%clk 0:00:06.2]} 46... Kg8 {[%clk 0:00:33.9]} 47.
Ng5 {[%clk 0:00:06.7]} 47... Rh1 {[%clk 0:00:32.8]} 48. Ra4 {[%clk 0:00:06.4]}
48... h2 {[%clk 0:00:33.1]} 49. Ra8+ {[%clk 0:00:06.4]} 49... Bf8 {[%clk
0:00:33.8]} 50. Nxe6 {[%clk 0:00:06]} 50... Rf1 {[%clk 0:00:34.5]} 51. Nxf8
{[%clk 0:00:01.8]} 51... Rxf8 {[%clk 0:00:34.4]} 52. Rxf8+ {[%clk 0:00:01.6]}
52... Kxf8 {[%clk 0:00:35.3]} 53. Kc4 {[%clk 0:00:02.1]} 53... Nxc3 {[%clk
0:00:35]} 54. bxc3 {[%clk 0:00:02.1]} 54... h1=Q {[%clk 0:00:33.9]} 55. a4
{[%clk 0:00:03]} 55... g5 {[%clk 0:00:32.9]} 56. Kb5 {[%clk 0:00:03.9]} 56... g4
{[%clk 0:00:33.5]} 57. a5 {[%clk 0:00:03.6]} 57... g3 {[%clk 0:00:34.4]} 0-1